bitfinex-derivatives/quotes_BTCF0:USTF0_20250309
["timestamp","ask_amount","ask_price","bid_price","bid_amount"]
[1741534844785,0.00017953,83539.0,83538.0,0.1197275]
[1741534845081,0.11990563,83539.0,83538.0,0.5636275]
[1741534845682,0.02598423,83542.0,83538.0,0.5636275]
[1741534845878,0.1197261,83539.0,83538.0,0.5636258]
[1741534846079,0.10230011,83540.0,83539.0,0.1197261]
[1741534846478,0.10230011,83540.0,83539.0,0.1620261]
[1741534847079,0.1197246,83540.0,83539.0,0.1620261]
[1741534847287,0.1197246,83540.0,83539.0,0.2023261]
[1741534848178,0.17123118,83541.0,83540.0,0.1197246]
[1741534848379,0.17123118,83541.0,83540.0,0.2034246]
[1741534848589,0.29095438,83541.0,83540.0,0.2034246]
[1741534849074,0.0598606,83543.0,83540.0,0.0837]
[1741534849280,0.0598606,83543.0,83542.0,0.1197218]
[1741534849483,0.0598606,83543.0,83542.0,0.2023618]
[1741534850787,0.0598606,83543.0,83542.0,0.08264]
[1741534851380,0.1014606,83543.0,83542.0,0.08264]
[1741534851586,0.1014606,83543.0,83533.0,0.00017953]
[1741534851587,0.0598647,83537.0,83533.0,0.00017953]
[1741534851886,0.1197332,83534.0,83533.0,0.00017953]
[1741534853091,0.1197476,83524.0,83523.0,0.0412]
[1741534854090,0.22267802,83524.0,83523.0,0.0412]
[1741534855285,0.119759,83516.0,83515.0,0.00017953]
[1741534855485,0.1197676,83510.0,83509.0,0.0438]
[1741534856584,0.1633676,83510.0,83509.0,0.0438]
[1741534859695,0.1633676,83510.0,83509.0,0.4046]
[1741534859994,0.1633676,83510.0,83509.0,0.5243691]
[1741534860196,0.1633676,83510.0,83509.0,0.4046]
[1741534860493,0.1633676,83510.0,83509.0,0.0438]
[1741534861099,0.1633676,83510.0,83509.0,0.5243691]
[1741534861487,0.0598826,83512.0,83509.0,0.5243691]
[1741534861488,0.01803042,83524.0,83517.0,0.1197576]
[1741534861689,0.0415,83523.0,83517.0,0.1197576]
[1741534861892,0.0415,83523.0,83517.0,0.1628576]
[1741534862089,0.11993573,83518.0,83517.0,0.2053576]
[1741534864499,0.11993573,83518.0,83517.0,0.4464]
[1741534864690,0.16323573,83518.0,83517.0,0.4464]
[1741534864886,0.16323573,83518.0,83517.0,0.0856]
[1741534867099,0.1197619,83514.0,83513.0,0.3608]
[1741534867890,0.0446,83517.0,83513.0,0.3608]
[1741534868096,0.00017953,83518.0,83517.0,0.1197576]
[1741534868397,0.00017953,83518.0,83515.0,0.0598796]
[1741534868598,0.1197576,83517.0,83516.0,0.0876]
[1741534868799,0.2086576,83517.0,83516.0,0.4484]
[1741534869188,0.2086576,83517.0,83516.0,0.0876]
[1741534869402,0.04959046,83517.0,83516.0,0.568159]
[1741534869700,0.16934806,83517.0,83516.0,0.4484]
[1741534869887,0.21034806,83517.0,83516.0,0.4484]
[1741534870295,0.21034806,83517.0,83516.0,0.0876]
[1741534870491,0.2047576,83517.0,83516.0,0.0443]
[1741534871397,0.1197648,83512.0,83511.0,0.0433]
[1741534871598,0.1197648,83512.0,83511.0,0.087]
[1741534872101,0.13828866,83512.0,83511.0,0.087]
[1741534872291,0.22518866,83512.0,83511.0,0.087]
[1741534874199,0.22518866,83512.0,83511.0,0.2067662]
[1741534875300,0.22518866,83512.0,83511.0,0.087]
[1741534877298,0.22518866,83512.0,83511.0,0.4478]
[1741534877795,0.10542386,83512.0,83504.0,0.0826]
[1741534877998,0.1197719,83507.0,83506.0,0.0422]
[1741534878397,0.2510719,83507.0,83506.0,0.0422]
[1741534879297,0.1313,83507.0,83501.0,0.00017953]
[1741534879601,0.0598887,83504.0,83492.0,0.00179655]
[1741534879808,0.1198049,83484.0,83483.0,0.3608]
[1741534880193,0.1198049,83484.0,83480.0,0.2145864]
[1741534880499,0.1198136,83478.0,83477.0,0.0422]
[1741534881898,0.1625136,83478.0,83477.0,0.0422]
[1741534882405,0.1198179,83475.0,83474.0,0.2145864]
[1741534883909,0.103908,83477.0,83476.0,0.1198164]
[1741534884099,0.044,83477.0,83474.0,0.317696]
[1741534884411,0.044,83477.0,83475.0,0.0413]
[1741534884412,0.1605164,83476.0,83475.0,0.0413]
[1741534887399,0.1605164,83476.0,83475.0,0.1611179]
[1741534888601,0.00017965,83486.0,83475.0,0.0413]
[1741534888909,0.00017965,83486.0,83485.0,0.1198035]
[1741534889302,0.00017965,83486.0,83485.0,0.2059035]
[1741534889303,0.11998175,83486.0,83485.0,0.2059035]
[1741534889502,0.00017965,83486.0,83485.0,0.0861]
[1741534889702,0.11998175,83486.0,83485.0,0.0861]
[1741534890112,0.11998175,83486.0,83485.0,0.2059035]
[1741534890902,0.00017965,83486.0,83485.0,0.2059035]
[1741534891218,0.00893531,83505.0,83500.0,0.119782]
[1741534891511,0.00893531,83505.0,83500.0,0.480582]
[1741534891709,0.01740924,83510.0,83500.0,0.563182]
[1741534892111,0.0412,83519.0,83500.0,0.563182]
[1741534892304,0.1197595,83516.0,83515.0,0.1197576]
[1741534892912,0.1197595,83516.0,83515.0,0.2053576]
[1741534893306,0.1197595,83516.0,83515.0,0.0856]
[1741534893507,0.1197595,83516.0,83515.0,0.2053605]
[1741534894112,0.13659302,83516.0,83515.0,0.0856]
[1741534894311,0.13659302,83516.0,83515.0,0.0429]
[1741534898123,0.1197676,83510.0,83509.0,0.3608]
[1741534898814,0.1197676,83510.0,83509.0,0.4023]
[1741534899120,0.1627676,83510.0,83509.0,0.4023]
[1741534899923,0.1627676,83510.0,83509.0,0.0415]
[1741534900117,0.1197791,83502.0,83501.0,0.0415]
[1741534900311,0.1197806,83501.0,83500.0,0.0441]
[1741534900514,0.1197834,83499.0,83493.0,0.1241]
[1741534900716,0.1197834,83499.0,83494.0,0.0441]
[1741534901117,0.1627834,83499.0,83494.0,0.0441]
[1741534903224,0.2453834,83499.0,83494.0,0.0441]
[1741534904521,0.119792,83493.0,83489.0,0.3608]
[1741534905221,0.207292,83493.0,83489.0,0.3608]
[1741534905817,0.1197963,83490.0,83489.0,0.3608]
[1741534906023,0.1198193,83474.0,83473.0,0.0417]
[1741534906316,0.1198193,83474.0,83473.0,0.0834]
[1741534907026,0.2087193,83474.0,83473.0,0.0834]
[1741534907223,0.0889,83474.0,83466.0,0.00179709]
[1741534907525,0.4806279,83468.0,83467.0,0.0417]
[1741534907918,0.4806279,83468.0,83466.0,0.00179709]
[1741534907919,0.1198293,83467.0,83466.0,0.00179709]
[1741534908319,0.1198423,83458.0,83457.0,0.0417]
[1741534908530,0.4806423,83458.0,83457.0,0.0417]
[1741534909021,0.4434,83458.0,83441.0,0.0446]
[1741534909227,0.3608,83448.0,83390.0,0.96910897]
[1741534909429,0.1198696,83439.0,83429.0,0.4053]
[1741534909628,0.2024696,83439.0,83435.0,0.00017976]
[1741534909921,0.2024696,83439.0,83411.0,0.58089618]
[1741534909922,0.5934,83439.0,83433.0,0.28267037]
[1741534910126,0.5934,83439.0,83422.0,0.4255163]
[1741534910127,0.1198839,83429.0,83422.0,0.4255163]
[1741534910330,0.58028809,83429.0,83428.0,0.20681278]
[1741534910631,0.1198925,83423.0,83422.0,0.3925063]
[1741534910821,0.5632925,83423.0,83422.0,0.3918263]
[1741534911625,0.56568992,83423.0,83422.0,0.3918263]
[1741534912228,0.56568992,83423.0,83411.0,0.49889618]
[1741534912427,0.56568992,83423.0,83411.0,0.32443371]
[1741534912428,0.4807084,83412.0,83411.0,0.32443371]
[1741534912626,0.5633084,83412.0,83411.0,0.32443371]
[1741534913126,0.56880316,83412.0,83411.0,0.32443371]
[1741534913328,0.65780316,83412.0,83411.0,0.32443371]
[1741534913526,0.53789476,83412.0,83405.0,0.00068]
[1741534913717,0.53789476,83412.0,83395.0,0.4807323]
[1741534913718,0.1199242,83401.0,83395.0,0.3608]
[1741534913918,0.2025242,83401.0,83396.0,0.0434]
[1741534914325,0.20800225,83401.0,83397.0,0.0425]
[1741534914625,0.20800225,83401.0,83376.0,0.00179916]
[1741534914832,0.11994,83390.0,83389.0,0.0425]
[1741534915127,0.20254,83390.0,83389.0,0.0425]
[1741534915425,0.009609,83388.0,83385.0,0.3608]
[1741534915626,0.09936702,83390.0,83385.0,0.4207729]
[1741534915829,0.0887,83400.0,83386.0,0.085]
[1741534916025,0.08264,83397.0,83393.0,0.0599673]
[1741534916327,0.045,83400.0,83393.0,0.0599673]
[1741534916328,0.045,83400.0,83394.0,0.085]
[1741534916521,0.1199328,83395.0,83394.0,0.0425]
[1741534916830,0.2049328,83395.0,83394.0,0.0425]
[1741534917031,0.0599672,83394.0,83390.0,0.1199396]
[1741534917328,0.0599672,83394.0,83384.0,0.0599739]
[1741534917329,0.08264,83400.0,83389.0,0.0876]
[1741534917534,0.1199457,83386.0,83385.0,0.3608]
[1741534918219,0.12548148,83386.0,83385.0,0.3608]
[1741534918421,0.1199515,83382.0,83381.0,0.0885]
[1741534918825,0.12548728,83382.0,83381.0,0.0885]
[1741534919224,0.12548728,83382.0,83380.0,0.35767217]
[1741534919225,0.00553578,83382.0,83380.0,0.35767217]
[1741534919422,0.2050529,83381.0,83380.0,0.32327217]
[1741534919622,0.2137529,83381.0,83380.0,0.32327217]
[1741534919828,0.2137529,83381.0,83365.0,0.0434]
[1741534919829,0.09933578,83381.0,83365.0,0.0434]
[1741534920027,0.1199745,83366.0,83365.0,0.0434]
[1741534920231,0.3608,83367.0,83356.0,0.3608]
[1741534920422,0.0869,83365.0,83357.0,0.0862]
[1741534920621,0.0151403,83366.0,83364.0,0.1199774]
[1741534920925,0.0151403,83366.0,83365.0,0.205876]
[1741534921122,0.36259989,83384.0,83383.0,0.1199501]
[1741534921326,0.36259989,83384.0,83382.0,0.1199509]
[1741534921518,0.00179989,83384.0,83383.0,0.1627501]
[1741534922028,0.00179989,83384.0,83383.0,0.2464301]
[1741534922225,0.12174849,83384.0,83383.0,0.12648]
[1741534922429,0.12174849,83384.0,83375.0,0.00017988]
[1741534922430,0.36259989,83384.0,83375.0,0.00017988]
[1741534922627,0.4807601,83376.0,83375.0,0.00017988]
[1741534922933,0.1199601,83376.0,83375.0,0.00017988]
[1741534923130,0.1199569,83379.0,83378.0,0.1199561]
[1741534923530,0.00179989,83384.0,83383.0,0.1199501]
[1741534924036,0.00179989,83384.0,83380.0,0.2041132]
[1741534924223,0.00179989,83384.0,83383.0,0.1199501]
[1741534924729,0.00017988,83392.0,83391.0,0.1199386]
[1741534924926,0.12011698,83392.0,83391.0,0.2042986]
[1741534925428,0.00017988,83392.0,83391.0,0.2042986]
[1741534925627,0.00017988,83392.0,83391.0,0.2861986]
[1741534925823,0.5992138,83458.0,83391.0,0.31626]
[1741534925824,0.36319744,83422.0,83391.0,0.31626]
[1741534926028,0.08432,83421.0,83409.0,0.0599563]
[1741534926327,0.0599494,83419.0,83412.0,0.1199084]
[1741534926523,0.0599478,83421.0,83412.0,0.5648084]
[1741534926720,0.00239744,83422.0,83412.0,0.5648084]
[1741534926928,0.1199018,83417.0,83412.0,0.6490484]
[1741534927129,0.00017988,83421.0,83412.0,0.6490484]
[1741534927430,0.12170634,83413.0,83412.0,0.6490484]
[1741534928029,0.12170634,83413.0,83412.0,0.4449]
[1741534928229,0.1199184,83405.0,83404.0,0.08445988]
[1741534929433,0.0599583,83407.0,83406.0,0.119917]
[1741534929832,0.0599549,83411.0,83406.0,0.119917]
[1741534930031,0.1199134,83409.0,83408.0,0.1199112]
[1741534930238,0.0844,83416.0,83412.0,0.1199084]
[1741534930436,0.06234504,83422.0,83412.0,0.1199084]
[1741534930626,0.0599499,83418.0,83412.0,0.1199084]
[1741534930933,0.1199098,83411.0,83410.0,0.08432]
[1741534931328,0.00179944,83413.0,83404.0,0.00017988]
[1741534931524,0.1199184,83405.0,83404.0,0.00017988]
[1741534931724,0.0844,83405.0,83404.0,0.00017988]
[1741534931930,0.2043184,83405.0,83404.0,0.00017988]
[1741534932337,0.1199184,83405.0,83404.0,0.00017988]
[1741534932541,0.1199184,83405.0,83404.0,0.12009978]
[1741534932735,0.1199184,83405.0,83404.0,0.00017988]
[1741534933235,0.37706806,83425.0,83412.0,0.1199084]
[1741534933535,0.0599542,83412.0,83408.0,0.08444]
[1741534933839,0.1199112,83410.0,83409.0,0.042]
[1741534935132,0.42411305,83413.0,83409.0,0.042]
[1741534935133,0.12326635,83413.0,83412.0,0.1199084]
[1741534935438,0.12170634,83413.0,83412.0,0.1199084]
[1741534935827,0.00179944,83413.0,83412.0,0.1199084]
[1741534936338,0.00179944,83413.0,83411.0,0.08452]
[1741534936339,0.1198995,83419.0,83418.0,0.1198969]
[1741534936539,0.00239744,83422.0,83418.0,0.2044169]
[1741534936733,0.00239744,83422.0,83420.0,0.1198969]
[1741534936941,0.12007528,83421.0,83420.0,0.1198969]
[1741534937133,0.12007528,83421.0,83420.0,0.1643969]
[1741534937329,0.12007528,83421.0,83420.0,0.0445]
[1741534937533,0.48087528,83421.0,83420.0,0.0445]
[1741534937731,0.56687528,83421.0,83420.0,0.0445]
[1741534938443,0.56687528,83421.0,83420.0,0.01238959]
[1741534939744,0.00017988,83421.0,83420.0,0.01238959]
[1741534940235,0.12007528,83421.0,83420.0,0.01238959]
[1741534940440,0.16377528,83421.0,83420.0,0.01238959]
[1741534940645,0.00017988,83421.0,83420.0,0.13228649]
[1741534941440,0.12007528,83421.0,83420.0,0.13228649]
[1741534941831,0.12007528,83421.0,83420.0,0.01238959]
[1741534942233,0.20417528,83421.0,83420.0,0.01238959]
[1741534942633,0.08427988,83421.0,83413.0,0.08508]
[1741534942936,0.1199127,83409.0,83408.0,0.08508]
[1741534943141,0.119917,83406.0,83405.0,0.0421]
[1741534944629,0.119917,83406.0,83404.0,0.00017988]
[1741534944630,0.101557,83408.0,83404.0,0.00017988]
[1741534944834,0.5223184,83405.0,83404.0,0.00017988]
[1741534946235,0.7414184,83405.0,83404.0,8e-08]
[1741534946442,0.1199558,83379.0,83372.0,0.00179925]
[1741534946737,0.1199558,83379.0,83373.0,0.1630641]
[1741534947039,0.1199558,83379.0,83372.0,0.00179925]
[1741534947235,0.2034558,83379.0,83373.0,0.0431]
[1741534947635,0.1199788,83363.0,83358.0,0.3608]
[1741534947938,0.5657788,83363.0,83349.0,0.1199977]
[1741534948147,0.1199933,83353.0,83352.0,0.1199941]
[1741534948538,0.1272,83355.0,83350.0,0.0599987]
[1741534948837,0.1199926,83354.0,83353.0,0.1199918]
[1741534949044,0.1200004,83348.0,83347.0,0.42984371]
[1741534949537,0.08552,83348.0,83347.0,0.42984371]
[1741534949739,0.042,83353.0,83347.0,0.42984371]
[1741534949940,0.042,83353.0,83352.0,0.1199947]
[1741534950130,0.042,83353.0,83347.0,0.42984371]
[1741534950131,0.1199972,83351.0,83347.0,0.42984371]
[1741534950335,0.0428,83350.0,83349.0,0.1199985]
[1741534950537,0.0428,83350.0,83347.0,0.48984401]
[1741534950843,0.1200004,83348.0,83347.0,0.42984371]
[1741534951344,0.4808004,83348.0,83347.0,0.42984371]
[1741534951638,0.5236004,83348.0,83347.0,0.42984371]
[1741534951838,0.1200177,83336.0,83335.0,0.3608]
[1741534952034,0.08556,83339.0,83335.0,0.4614095]
[1741534952237,0.08556,83339.0,83326.0,0.08556]
[1741534952238,0.1200249,83331.0,83326.0,0.3608]
[1741534952434,0.2055849,83331.0,83325.0,0.1200328]
[1741534952835,0.2055849,83331.0,83321.0,0.083]
[1741534953034,0.2055849,83331.0,83327.0,0.12003]
[1741534953245,0.2055849,83331.0,83321.0,0.2030388]
[1741534953446,0.2055849,83331.0,83321.0,0.083]
[1741534953447,0.2911849,83331.0,83321.0,0.083]
[1741534953632,0.17116,83331.0,83330.0,0.48262643]
[1741534953947,0.1200126,83340.0,83330.0,0.48262643]
[1741534953948,0.00018,83344.0,83343.0,0.1200076]
[1741534954739,0.00018,83344.0,83343.0,0.2488676]
[1741534955342,0.1201862,83344.0,83343.0,0.2055676]
[1741534956047,0.1201862,83344.0,83343.0,0.2105676]
[1741534956245,0.1201862,83344.0,83343.0,0.2545676]
[1741534958239,0.00018,83344.0,83343.0,0.1250076]
[1741534958449,0.1170091,83342.0,83341.0,0.0445]
[1741534958646,0.1170091,83342.0,83341.0,0.1645105]
[1741534958848,0.00018,83344.0,83343.0,0.1200076]
[1741534959537,0.00018,83344.0,83343.0,0.2093076]
[1741534959742,0.00018,83344.0,83343.0,0.2133076]
[1741534960133,0.00018,83344.0,83343.0,0.5741076]
[1741534961539,0.00018,83344.0,83343.0,0.5721076]
[1741534961942,0.2052172,83369.0,83368.0,0.1199702]
[1741534962134,0.2888172,83369.0,83368.0,0.1199702]
[1741534962342,0.2035772,83369.0,83368.0,0.1199702]
[1741534962543,0.22002489,83369.0,83368.0,0.1199702]
[1741534962852,0.0599878,83366.0,83363.0,0.08524]
[1741534963035,0.162376,83365.0,83364.0,0.0866]
[1741534963240,0.203476,83365.0,83364.0,0.0417]
[1741534963442,0.0835,83365.0,83356.0,0.00018]
[1741534963744,0.1199875,83357.0,83356.0,0.00018]
[1741534964144,0.1199875,83357.0,83356.0,0.1201689]
[1741534964345,0.0835,83358.0,83356.0,0.1201689]
[1741534964541,0.60129811,83391.0,83356.0,0.00018]
[1741534964542,0.0599756,83383.0,83356.0,0.00018]
[1741534964740,0.186326,83368.0,83367.0,0.1199731]
[1741534964935,0.0411,83368.0,83367.0,0.1199731]
[1741534965339,0.1610716,83368.0,83367.0,0.1199731]
[1741534965748,0.1199774,83364.0,83363.0,0.0599888]
[1741534966143,0.1199875,83357.0,83356.0,0.120166]
[1741534966338,0.1189875,83357.0,83356.0,0.00018]
[1741534966542,0.1189875,83357.0,83356.0,0.1201689]
[1741534966953,0.1637875,83357.0,83356.0,0.1201689]
[1741534967543,0.0448,83357.0,83356.0,0.1201689]
[1741534967749,0.0406,83358.0,83357.0,0.1199875]
[1741534967950,0.0406,83358.0,83357.0,0.5655875]
[1741534968151,0.160586,83358.0,83357.0,0.2047875]
[1741534968343,0.202386,83358.0,83357.0,0.5655875]
[1741534968741,0.0824,83358.0,83357.0,0.5655875]
[1741534969047,0.0824,83358.0,83356.0,0.00018]
[1741534969254,0.1189875,83357.0,83356.0,0.00018]
[1741534969647,0.2052875,83357.0,83356.0,0.00018]
[1741534969851,0.2904475,83357.0,83356.0,0.00018]
[1741534970152,0.119999,83349.0,83324.0,0.08516]
[1741534970454,0.119022,83333.0,83332.0,0.1200224]
[1741534970854,0.1200249,83331.0,83330.0,0.00180003]
[1741534971352,0.1200249,83331.0,83311.0,0.4208265]
[1741534971353,0.1200379,83322.0,83311.0,0.4208265]
[1741534971552,0.2052779,83322.0,83312.0,0.0426]
[1741534971746,0.2052779,83322.0,83314.0,0.1200488]
[1741534971946,0.2052779,83322.0,83311.0,0.4208265]
[1741534972152,0.1200523,83312.0,83311.0,0.3608]
[1741534972551,0.1200681,83302.0,83301.0,0.1200676]
[1741534972860,0.12618,83311.0,83310.0,0.1200552]
[1741534973158,0.3608,83322.0,83319.0,0.1200422]
[1741534973352,0.08528,83324.0,83315.0,0.0600234]
[1741534973550,0.1200465,83316.0,83315.0,0.0600234]
[1741534973751,0.08536,83318.0,83310.0,0.0423]
[1741534973950,0.1200527,83312.0,83311.0,0.1200516]
[1741534974157,0.1200527,83312.0,83311.0,0.1645516]
[1741534974357,0.3608,83323.0,83311.0,0.0445]
[1741534974655,0.1200377,83324.0,83323.0,0.1200354]
[1741534974860,0.1200379,83322.0,83321.0,0.1800575]
[1741534975047,0.1200379,83322.0,83321.0,0.060019]
[1741534975447,0.00018,83325.0,83321.0,0.060019]
[1741534975448,0.00018,83325.0,83321.0,0.145539]
[1741534975651,0.00018,83325.0,83324.0,0.480835]
[1741534976149,0.1202136,83325.0,83324.0,0.3608]
[1741534976356,0.120035,83324.0,83323.0,0.0417]
[1741534976557,0.204435,83324.0,83323.0,0.0417]
[1741534977160,0.0844,83324.0,83319.0,0.08548]
[1741534977457,0.0408,83324.0,83323.0,0.1200364]
[1741534977656,0.00018,83325.0,83324.0,0.120035]
[1741534977855,0.00018,83325.0,83324.0,0.204835]
[1741534978056,0.1202136,83325.0,83324.0,0.204835]
[1741534978257,0.00018,83325.0,83324.0,0.204835]
[1741534979256,0.1202136,83325.0,83324.0,0.206835]
[1741534979759,0.00018,83325.0,83324.0,0.204835]
[1741534979953,0.00018,83325.0,83324.0,0.206835]
[1741534980352,0.21195684,83333.0,83332.0,0.1200235]
[1741534980548,0.2053971,83351.0,83350.0,0.1199976]
[1741534980750,0.1200192,83335.0,83334.0,0.08548]
[1741534980961,0.4808192,83335.0,83334.0,0.08548]
[1741534981655,0.4808192,83335.0,83330.0,0.08544]
[1741534981656,0.1200249,83331.0,83330.0,0.08544]
[1741534982052,0.1200307,83327.0,83326.0,0.00018]
[1741534982252,0.1200307,83327.0,83326.0,0.08562]
[1741534982961,0.2058307,83327.0,83326.0,0.08562]
[1741534983351,0.2088307,83327.0,83326.0,0.2056521]
[1741534983547,0.2088307,83327.0,83326.0,0.08562]
[1741534983957,0.2078307,83327.0,83326.0,0.08562]
[1741534984947,0.2078307,83327.0,83326.0,0.00018]
[1741534985354,0.5686307,83327.0,83326.0,0.00018]
[1741534985554,0.5666307,83327.0,83326.0,0.00018]
[1741534985758,0.5686307,83327.0,83326.0,0.00018]
[1741534986155,0.2078307,83327.0,83326.0,0.00018]
[1741534986357,0.0878,83327.0,83326.0,0.1202121]
[1741534986558,0.2078307,83327.0,83326.0,0.1202121]
[1741534986956,0.2098307,83327.0,83326.0,0.1202121]
[1741534987262,0.2098307,83327.0,83326.0,0.2050121]
[1741534987465,0.0432,83327.0,83326.0,0.2050121]
[1741534987763,0.08542,83343.0,83335.0,0.1200192]
[1741534987955,0.1200139,83339.0,83335.0,0.5660592]
[1741534988264,0.2191,83342.0,83335.0,0.5660592]
[1741534988766,0.2623099,83336.0,83335.0,0.52954]
[1741534989657,0.1200177,83336.0,83335.0,0.2887592]
[1741534989861,0.1230177,83336.0,83335.0,0.2887592]
[1741534990459,0.1230177,83336.0,83335.0,0.0835]
[1741534990659,0.1230177,83336.0,83335.0,0.16866]
[1741534990855,0.07578629,83352.0,83340.0,0.0600053]
[1741534991055,0.1201876,83343.0,83342.0,0.1200091]
[1741534991259,0.1201876,83343.0,83342.0,0.2046091]
[1741534991768,0.1201876,83343.0,83342.0,0.0846]
[1741534992264,0.1633876,83343.0,83342.0,0.2046091]
[1741534992471,0.00018,83343.0,83342.0,0.2046091]
[1741534992758,0.1201876,83343.0,83342.0,0.2046091]
[1741534992959,0.1201876,83343.0,83333.0,0.0415]
[1741534992960,0.00018,83343.0,83333.0,0.0415]
[1741534993166,0.1200206,83334.0,83333.0,0.161522]
[1741534993364,0.1200206,83334.0,83333.0,0.0415]
[1741534993965,0.1160206,83334.0,83333.0,0.0415]
[1741534994167,0.1590206,83334.0,83333.0,0.0415]
[1741534994366,0.2025206,83334.0,83333.0,0.0415]
[1741534994565,0.2025206,83334.0,83333.0,0.161522]
[1741534996263,0.2035206,83334.0,83333.0,0.161522]
[1741534996455,0.044,83334.0,83333.0,0.161522]
[1741534996759,0.0852,83346.0,83340.0,0.1200119]
[1741534997063,0.0599949,83356.0,83342.0,0.4808091]
[1741534997263,0.0599988,83350.0,83342.0,0.1200091]
[1741534997459,0.0433,83355.0,83342.0,0.6129091]
[1741534997862,0.0599998,83349.0,83342.0,0.6129091]
[1741534998062,0.00418,83343.0,83342.0,0.6129091]
[1741534998263,0.1241876,83343.0,83342.0,0.6129091]
[1741534998462,0.1800006,83350.0,83349.0,0.1199919]
[1741534998661,0.2400002,83350.0,83349.0,0.2052319]
[1741534998864,0.2400002,83350.0,83349.0,0.5660319]
[1741534999059,0.01576253,83360.0,83349.0,0.44604]
[1741534999364,0.059991,83361.0,83360.0,0.1199832]
[1741534999562,0.04438,83363.0,83362.0,0.1199803]
[1741534999755,0.1643588,83363.0,83362.0,0.1199803]
[1741535000561,0.00018,83363.0,83362.0,0.1199803]
[1741535001262,0.1201588,83363.0,83362.0,0.1199803]
[1741535001471,0.1261588,83363.0,83362.0,0.1652803]
[1741535003068,0.33491861,83363.0,83362.0,0.1642803]
[1741535003468,0.33391861,83363.0,83362.0,0.1642803]
[1741535004062,0.33491861,83363.0,83362.0,0.1642803]
[1741535005168,0.1199817,83361.0,83360.0,0.179973]
[1741535005364,0.1199817,83361.0,83360.0,0.0422]
[1741535005768,0.1645817,83361.0,83360.0,0.0422]
[1741535006169,0.041,83362.0,83361.0,0.1199817]
[1741535006457,0.21493981,83363.0,83361.0,0.1199817]
[1741535006668,0.21493981,83363.0,83362.0,0.1199803]
[1741535006961,0.21393981,83363.0,83362.0,0.1199803]
[1741535007166,0.14252872,83363.0,83362.0,0.1611803]
[1741535007964,0.26250752,83363.0,83362.0,0.5219803]
[1741535008165,0.26250752,83363.0,83362.0,0.1611803]
[1741535008663,0.26250752,83363.0,83362.0,0.2459403]
[1741535009871,0.26250752,83363.0,83362.0,0.2872803]
[1741535010671,0.26350752,83363.0,83362.0,0.2872803]
[1741535010967,0.00118,83363.0,83362.0,0.2872803]
[1741535011173,0.00118,83363.0,83362.0,0.6480803]
[1741535011674,0.1211588,83363.0,83362.0,0.6480803]
[1741535014968,0.00118,83363.0,83362.0,0.6480803]
[1741535015476,0.1211588,83363.0,83362.0,0.6480803]
[1741535015971,0.00118,83363.0,83362.0,0.6480803]
[1741535016172,0.1778441,83372.0,83371.0,0.1199673]
[1741535016383,0.1778441,83372.0,83371.0,0.5657673]
[1741535017172,0.29781,83372.0,83371.0,0.66897895]
[1741535017474,0.1778441,83372.0,83371.0,0.6535673]
[1741535017670,0.30181,83372.0,83371.0,0.53356]
[1741535017871,0.30181,83372.0,83371.0,0.6535273]
[1741535019482,0.1818441,83372.0,83371.0,0.6535273]
[1741535019775,0.004,83372.0,83371.0,0.6535273]
[1741535020167,0.1239659,83372.0,83371.0,0.6535273]
[1741535020672,0.004,83372.0,83371.0,0.6535273]
[1741535023177,0.1239659,83372.0,83371.0,0.6107073]
[1741535023369,0.1239659,83372.0,83371.0,0.2946073]
[1741535028279,0.237825,83375.0,83371.0,0.17564]
[1741535028583,0.2082654,83373.0,83372.0,0.18004071]
[1741535028984,0.2082654,83373.0,83372.0,0.26584071]
[1741535029181,0.2082654,83373.0,83372.0,9.251e-05]
[1741535029385,0.2082654,83373.0,83363.0,1e-07]
[1741535029386,0.1199774,83364.0,83363.0,1e-07]
[1741535029586,0.1200033,83346.0,83341.0,0.0428]
[1741535029780,0.1200033,83346.0,83345.0,0.20652454]
[1741535030388,0.0853,83347.0,83346.0,0.1200033]
[1741535030686,0.1201742,83354.0,83353.0,0.1199901]
[1741535030882,0.1201742,83354.0,83353.0,0.2046701]
[1741535031286,0.1201742,83354.0,83353.0,0.5654701]
[1741535031590,0.1201742,83354.0,83353.0,0.08468]
[1741535031789,0.1200004,83348.0,83347.0,0.2046813]
[1741535032088,0.13552493,83348.0,83347.0,0.2495813]
[1741535032588,0.1200004,83348.0,83347.0,0.2495813]
[1741535032983,0.00018,83354.0,83352.0,0.1199947]
[1741535033179,0.0411,83372.0,83361.0,0.1199817]
[1741535033383,0.0421,83382.0,83375.0,0.0599805]
[1741535033585,0.11996,83378.0,83377.0,0.3608]
[1741535033780,0.0599764,83381.0,83374.0,0.08468]
[1741535033982,0.1199616,83375.0,83374.0,0.08468]
[1741535034590,0.1199688,83370.0,83369.0,0.3608]
[1741535034888,0.1199731,83367.0,83366.0,0.00018]
[1741535035190,0.4807731,83367.0,83366.0,0.00018]
[1741535035387,0.1199731,83367.0,83366.0,0.00018]
[1741535035577,0.1620731,83367.0,83366.0,0.00018]
[1741535037582,0.1539731,83367.0,83366.0,0.00018]
[1741535037984,0.1569731,83367.0,83366.0,0.00018]
[1741535038188,0.26544217,83367.0,83366.0,0.00018]
[1741535041985,0.15356907,83367.0,83366.0,0.1201545]
[1741535042191,0.23144217,83367.0,83366.0,0.2044745]
[1741535042391,0.23144217,83367.0,83366.0,0.0845]
[1741535043396,0.23144217,83367.0,83366.0,0.00018]
[1741535043789,0.27834217,83367.0,83366.0,0.00018]
[1741535044991,0.27634217,83367.0,83366.0,0.00018]
[1741535045190,0.1678731,83367.0,83366.0,0.00018]
[1741535045492,0.1688731,83367.0,83366.0,0.00018]
[1741535045995,0.1688731,83367.0,83366.0,0.04708]
[1741535046195,0.1668731,83367.0,83366.0,0.04708]
[1741535046398,0.1698731,83367.0,83366.0,0.04708]
[1741535047793,0.1698731,83367.0,83366.0,0.1670545]
[1741535048000,0.1698731,83367.0,83366.0,0.2117545]
[1741535048789,0.001,83367.0,83366.0,0.2117545]
[1741535049204,0.1209731,83367.0,83366.0,0.0845]
[1741535049508,0.1209731,83367.0,83366.0,0.00018]
[1741535050099,0.2146731,83367.0,83366.0,0.00018]
[1741535050401,0.2990731,83367.0,83366.0,0.00018]
[1741535050698,0.1199889,83356.0,83355.0,0.0461]
[1741535051307,0.1179889,83356.0,83355.0,0.0461]
[1741535051604,0.2044889,83356.0,83355.0,0.0461]
[1741535052397,0.00018,83364.0,83358.0,0.0599928]
[1741535052597,0.1199832,83360.0,83359.0,0.13242]
[1741535052793,0.13527597,83360.0,83359.0,0.13242]